bitfinex/quotes_SOLUSD_20220207
["timestamp","ask_amount","ask_price","bid_price","bid_amount"]
[1644253766286,48.01947865,119.75,119.65,0.024]
[1644253767689,48.01947865,119.75,119.64,0.32906686]
[1644253767910,48.01947865,119.75,119.65,0.024]
[1644253768315,12.7893,119.75,119.65,0.024]
[1644253768511,0.25,119.75,119.65,12.034]
[1644253768713,1.16504608,119.79,119.66,1.75894672]
[1644253768913,6.18045,119.78,119.68,12.5345]
[1644253769113,6.18045,119.78,119.69,12.01]
[1644253769316,42.9675696,119.77,119.69,51.52848744]
[1644253769515,6.18045,119.76,119.69,51.52848744]
[1644253770315,6.18045,119.76,119.69,12.01]
[1644253770515,6.18045,119.76,119.66,12.01]
[1644253770818,2.14682857,119.75,119.65,0.024]
[1644253771419,39.89410717,119.74,119.65,0.024]
[1644253771617,52.43510717,119.74,119.65,0.024]
[1644253771817,52.68510717,119.74,119.65,45.2648382]
[1644253772617,52.68510717,119.74,119.65,0.024]
[1644253773019,54.83193574,119.74,119.65,0.024]
[1644253773220,55.13488807,119.74,119.65,0.024]
[1644253773422,67.14488807,119.74,119.65,0.024]
[1644253773922,66.84193574,119.74,119.65,0.024]
[1644253774321,155.0,119.73,119.59,12.5436]
[1644253774522,12.85389273,119.69,119.57,0.41800349]
[1644253774721,0.31494317,119.64,119.57,0.024]
[1644253774925,0.31494317,119.64,119.58,0.024]
[1644253775123,113.0,119.63,119.54,0.48027807]
[1644253775321,30.63668481,119.62,119.55,0.024]
[1644253775526,32.78351338,119.62,119.55,0.024]
[1644253775725,12.557,119.6,119.54,0.48027807]
[1644253776126,130.0,119.59,119.54,7.807e-05]
[1644253776326,0.25,119.59,119.54,7.807e-05]
[1644253777126,12.5536,119.62,119.54,7.807e-05]
[1644253778330,49.19624927,119.67,119.54,12.01007807]
[1644253778534,1.16504608,119.72,119.55,1.78294672]
[1644253778731,6.18045,119.71,119.56,12.01]
[1644253778928,6.18045,119.71,119.61,150.15]
[1644253779130,6.18045,119.71,119.62,12.01]
[1644253779335,6.18045,119.71,119.63,41.91179561]
[1644253779530,6.18045,119.71,119.64,12.01]
[1644253779733,6.18045,119.71,119.64,12.26]
[1644253779933,6.18045,119.71,119.64,14.01894672]
[1644253780138,6.18045,119.71,119.64,26.55564672]
[1644253780535,6.18045,119.71,119.65,42.01672841]
[1644253780735,48.13183853,119.71,119.66,12.01]
[1644253780936,6.18045,119.71,119.66,12.01]
[1644253781835,6.18045,119.71,119.67,38.6397133]
[1644253782338,6.18045,119.71,119.65,10.05]
[1644253782937,6.43045,119.71,119.65,10.05]
[1644253783138,6.43045,119.71,119.63,10.05]
[1644253783340,6.43045,119.71,119.64,40.87333703]
[1644253784339,46.03860804,119.71,119.64,40.87333703]
[1644253785140,6.43045,119.71,119.64,40.87333703]
[1644253785741,5.87408339,119.71,119.64,40.87333703]
[1644253786243,35.66488085,119.7,119.64,40.87333703]
[1644253786443,6.18045,119.69,119.64,40.87333703]
[1644253786640,35.91488085,119.7,119.64,40.87333703]
[1644253786840,35.91488085,119.7,119.61,10.05]
[1644253787041,35.91488085,119.7,119.59,10.05]
[1644253787242,35.91488085,119.7,119.57,0.024]
[1644253787442,35.91488085,119.7,119.55,10.074]
[1644253787642,35.91488085,119.7,119.57,0.024]
[1644253788341,49.94483297,119.69,119.57,0.024]
[1644253788541,59.99483297,119.69,119.55,0.024]
[1644253788741,0.31925507,119.65,119.55,0.024]
[1644253789142,17.78763722,119.68,119.55,0.024]
[1644253789343,2.14682857,119.7,119.55,45.22076232]
[1644253789645,23.4206,119.71,119.56,11.83287266]
[1644253789844,23.4206,119.71,119.57,0.024]
[1644253790044,23.4206,119.71,119.58,10.05]
[1644253790245,23.4206,119.71,119.59,0.024]
[1644253790444,49.05885018,119.7,119.59,41.61253161]
[1644253790649,49.05885018,119.7,119.6,0.024]
[1644253790843,47.16202161,119.7,119.6,0.024]
[1644253791146,49.30885018,119.7,119.6,0.024]
[1644253791344,49.30885018,119.7,119.54,0.50832581]
[1644253791345,49.30885018,119.7,119.55,0.024]
[1644253791546,49.30885018,119.7,119.58,0.024]
[1644253791745,49.30885018,119.7,119.56,0.024]
[1644253791943,59.35885018,119.7,119.55,55.62087279]
[1644253792143,59.35885018,119.7,119.56,0.024]
[1644253792943,49.30885018,119.7,119.57,10.05]
[1644253793145,49.30885018,119.7,119.58,41.52733808]
[1644253793346,49.30885018,119.7,119.59,0.024]
[1644253794443,47.16202161,119.7,119.59,0.024]
[1644253795144,23.61877037,119.68,119.59,0.024]
[1644253795344,23.86877037,119.68,119.59,0.024]
[1644253795544,26.01559894,119.68,119.59,0.024]
[1644253795946,26.01559894,119.68,119.57,0.024]
[1644253796748,26.01559894,119.68,119.57,40.60997602]
[1644253797046,26.01559894,119.68,119.58,0.024]
[1644253799748,23.86877037,119.68,119.58,10.074]
[1644253799950,23.11877037,119.68,119.59,37.18214629]
[1644253800251,2.14682857,119.7,119.61,37.57952686]
[1644253800750,23.4206,119.71,119.62,0.024]
[1644253800949,23.4206,119.71,119.63,10.05]
[1644253801151,1.16504608,119.73,119.63,10.05]
[1644253801450,39.17895494,119.73,119.64,46.03091768]
[1644253801751,46.52445102,119.73,119.66,45.37267335]
[1644253801952,45.35940494,119.73,119.66,45.37267335]
[1644253802153,6.18045,119.73,119.66,45.37267335]
[1644253802652,6.18045,119.73,119.66,55.42267335]
[1644253803053,43.61557994,119.73,119.66,55.42267335]
[1644253803653,43.86557994,119.73,119.66,55.42267335]
[1644253804256,6.43045,119.73,119.66,55.42267335]
[1644253804456,6.18045,119.73,119.66,55.42267335]
[1644253805259,1.16504608,119.77,119.66,55.67267335]
[1644253805462,1.16504608,119.78,119.66,195.56297965]
[1644253805657,1.16504608,119.8,119.69,125.59]
[1644253805858,1.16504608,119.81,119.7,10.05]
[1644253806058,1.16504608,119.82,119.7,11.82014079]
[1644253806259,1.16504608,119.82,119.7,12.07014079]
[1644253806460,0.03938359,119.81,119.71,39.9991705]
[1644253806658,37.24378318,119.81,119.73,44.79335486]
[1644253806862,37.20439959,119.81,119.75,39.35403168]
[1644253807064,37.24378318,119.81,119.75,10.05]
[1644253807261,2.14682857,119.8,119.69,12.265]
[1644253807464,2.14682857,119.8,119.7,10.05]
[1644253807661,38.40882926,119.81,119.7,10.05]
[1644253807662,1.16504608,119.81,119.7,10.05]
[1644253807862,0.03938359,119.81,119.7,10.05]
[1644253808062,0.03938359,119.81,119.7,22.5817]
[1644253808660,0.03938359,119.81,119.71,47.70188741]
[1644253808862,0.03938359,119.81,119.72,10.05]
[1644253809279,0.03938359,119.81,119.72,22.5793]
[1644253809878,1.20442967,119.82,119.72,22.5793]
[1644253810080,43.51431943,119.81,119.73,47.95717435]
[1644253810280,43.80370302,119.81,119.74,10.05]
[1644253810479,43.80370302,119.81,119.75,47.63430168]
[1644253810682,0.25,119.81,119.75,47.63430168]
[1644253811481,0.03938359,119.82,119.75,47.63430168]
[1644253811682,42.56439243,119.82,119.75,47.63430168]
[1644253811882,44.711221,119.82,119.75,47.63430168]
[1644253812283,44.961221,119.82,119.75,47.63430168]
[1644253812482,2.39682857,119.82,119.75,47.63430168]
[1644253812882,0.25,119.82,119.75,47.63430168]
[1644253813381,0.03938359,119.83,119.75,47.63430168]
[1644253813582,41.82480383,119.83,119.75,47.63430168]
[1644253813785,42.11418742,119.83,119.75,47.63430168]
[1644253814686,0.28938359,119.83,119.75,47.63430168]
[1644253815186,0.28938359,119.84,119.75,57.68430168]
[1644253815385,0.03938359,119.84,119.75,57.68430168]
[1644253815586,1.93621216,119.85,119.75,57.68430168]
[1644253815786,39.07697145,119.85,119.75,57.68430168]
[1644253816188,2.14682857,119.84,119.75,57.68430168]
[1644253816386,39.07048269,119.83,119.75,47.63430168]
[1644253816586,39.07048269,119.83,119.73,10.05]
[1644253816785,2.14682857,119.82,119.73,10.05]
[1644253817187,2.39682857,119.82,119.73,10.05]
[1644253817386,0.25,119.82,119.73,10.05]
[1644253817590,0.25,119.82,119.74,47.45397644]
[1644253817888,37.14075929,119.81,119.74,47.45397644]
[1644253818288,37.39075929,119.81,119.74,47.45397644]
[1644253818690,39.53758786,119.81,119.74,47.45397644]
[1644253818889,39.53758786,119.81,119.73,10.05]
[1644253819090,39.53758786,119.81,119.63,191.4004]
[1644253819291,39.53758786,119.81,119.67,10.05]
[1644253819490,40.70263394,119.81,119.68,6.14404]
[1644253819691,61.16181068,119.8,119.65,10.05]
[1644253819891,40.23552877,119.79,119.66,35.69975701]
[1644253820193,42.38235734,119.79,119.66,35.69975701]
[1644253820392,2.14682857,119.78,119.66,41.84482701]
[1644253820591,37.14075929,119.77,119.66,41.84482701]
[1644253820995,2.14682857,119.76,119.66,41.84482701]
[1644253821195,39.07048269,119.75,119.66,41.84482701]
[1644253821595,39.32048269,119.75,119.66,41.84482701]
[1644253822698,39.07048269,119.75,119.66,41.84482701]
[1644253823396,39.07048269,119.75,119.66,35.69975701]
[1644253823997,3.31187465,119.79,119.66,35.69975701]
[1644253824196,3.56187465,119.79,119.66,35.69975701]
[1644253824399,2.14682857,119.78,119.66,35.69975701]
[1644253824696,2.39682857,119.78,119.66,35.69975701]
[1644253824897,43.73449866,119.77,119.66,35.69975701]
[1644253825300,46.13132723,119.77,119.66,35.69975701]
[1644253826497,46.13132723,119.77,119.61,0.024]
[1644253826698,46.13132723,119.77,119.62,10.05]
[1644253826899,56.18132723,119.77,119.63,0.024]
[1644253827499,32.47674332,119.75,119.63,0.024]
[1644253827700,10.05,119.74,119.63,0.024]
[1644253827901,43.73449866,119.73,119.63,0.024]
[1644253828099,45.88132723,119.73,119.63,0.024]
[1644253828298,46.13132723,119.73,119.63,0.024]
[1644253828500,32.47674332,119.71,119.63,0.024]
[1644253828698,32.72674332,119.71,119.62,44.46526366]
[1644253829300,32.47674332,119.71,119.62,44.46526366]
[1644253829601,34.62357189,119.71,119.62,44.46526366]
[1644253830603,34.87357189,119.71,119.62,44.46526366]
[1644253832404,34.87357189,119.71,119.6,0.024]
[1644253833504,32.72674332,119.71,119.6,35.94770998]
[1644253833705,32.72674332,119.71,119.61,0.024]
[1644253834407,3.31187465,119.74,119.61,0.024]
[1644253835205,44.32382496,119.73,119.61,0.024]
[1644253835708,44.57382496,119.73,119.61,0.024]
[1644253836715,46.72065353,119.73,119.61,0.024]
[1644253837608,46.72065353,119.73,119.61,10.074]
[1644253837907,46.72065353,119.73,119.62,43.44382993]
[1644253840109,44.57382496,119.73,119.62,43.44382993]
[1644253841212,46.72065353,119.73,119.62,43.44382993]
[1644253841412,52.90110353,119.73,119.62,43.44382993]
[1644253841614,54.06614961,119.73,119.62,43.44382993]
[1644253841813,52.90110353,119.73,119.62,43.44382993]
[1644253842936,54.06614961,119.73,119.62,43.44382993]
[1644253843536,66.66679035,119.73,119.62,43.44382993]
[1644253844534,66.66679035,119.73,119.62,0.024]
[1644253844735,1.16504608,119.72,119.6,0.024]
[1644253845135,3.31187465,119.71,119.6,0.024]
[1644253845337,3.56187465,119.71,119.6,0.024]
[1644253845539,2.14682857,119.7,119.6,0.024]
[1644253845737,31.88741702,119.69,119.6,0.024]
[1644253846239,32.13741702,119.69,119.6,0.024]
[1644253847037,31.88741702,119.69,119.6,0.024]
[1644253848438,33.0524631,119.69,119.6,0.024]
[1644253848637,32.13741702,119.69,119.6,0.024]
[1644253849039,0.25,119.69,119.6,0.024]
[1644253849238,2.14682857,119.69,119.6,0.024]
[1644253849439,1.16504608,119.7,119.6,0.024]
[1644253849837,1.16504608,119.69,119.6,0.024]
[1644253850437,1.41504608,119.69,119.6,0.024]
[1644253850939,32.43484573,119.68,119.6,0.024]
[1644253851140,33.59989181,119.68,119.6,0.024]
[1644253851338,2.14682857,119.67,119.6,0.024]
[1644253851543,42.99631976,119.66,119.59,40.46680436]
[1644253851739,43.24631976,119.66,119.59,40.46680436]
[1644253852139,0.25,119.66,119.59,40.46680436]
[1644253853039,42.06526037,119.67,119.59,40.46680436]
[1644253853241,42.31526037,119.67,119.59,40.49080436]
[1644253853440,43.29704286,119.67,119.59,40.46680436]
[1644253853639,44.46208894,119.67,119.59,40.46680436]
[1644253854144,42.31526037,119.67,119.59,40.46680436]
[1644253854543,1.41504608,119.67,119.59,40.46680436]
[1644253854843,2.14682857,119.66,119.59,40.46680436]
[1644253855245,2.39682857,119.66,119.59,40.46680436]
[1644253855643,38.39226944,119.66,119.59,40.46680436]
[1644253856044,39.55731552,119.66,119.59,40.46680436]
[1644253856447,1.41504608,119.66,119.59,40.46680436]
[1644253856648,0.25,119.66,119.59,40.46680436]
[1644253856847,1.16504608,119.68,119.59,40.46680436]
[1644253857046,1.16504608,119.68,119.6,0.024]
[1644253859348,44.39026184,119.69,119.6,0.024]
[1644253859549,1.16504608,119.68,119.6,0.024]
[1644253859750,1.41504608,119.68,119.6,0.024]
[1644253860149,33.23602622,119.67,119.6,0.024]
[1644253860350,33.48602622,119.67,119.59,52.51680436]
[1644253861152,0.25,119.67,119.59,52.51680436]
[1644253861658,0.25,119.68,119.59,52.51680436]
[1644253861854,7.34549608,119.68,119.59,52.54080436]
[1644253862053,6.18045,119.68,119.59,52.54080436]
[1644253862255,6.18045,119.68,119.59,52.79080436]
[1644253862453,6.18045,119.68,119.59,54.55455304]
[1644253862654,6.18045,119.68,119.59,54.30455304]
[1644253862853,6.18045,119.68,119.59,54.55455304]
[1644253863254,6.18045,119.68,119.59,52.79080436]
[1644253863956,6.18045,119.68,119.59,65.33510436]
[1644253865757,6.43045,119.68,119.59,65.33510436]
[1644253866159,6.43045,119.68,119.59,65.08510436]
[1644253866358,6.18045,119.68,119.6,1.76932328]
[1644253866560,1.16504608,119.71,119.62,12.5389]
[1644253866860,1.16504608,119.71,119.63,52.81612226]
[1644253866861,6.18045,119.71,119.63,52.81612226]
[1644253867258,6.18045,119.71,119.63,53.06612226]
[1644253867661,6.18045,119.71,119.64,12.5385]
[1644253867859,6.18045,119.71,119.65,12.05]
[1644253868261,6.43045,119.71,119.66,43.41309577]
[1644253868761,39.91235335,119.74,119.66,43.41309577]
[1644253868961,1.16504608,119.75,119.66,43.41309577]
[1644253869561,3.35085702,119.76,119.66,43.41309577]
[1644253869961,46.28158819,119.76,119.66,43.41309577]
[1644253870162,46.03158819,119.76,119.66,55.46309577]
[1644253870563,1.16504608,119.75,119.66,55.46309577]
[1644253870764,1.16504608,119.75,119.66,68.00029577]
[1644253870964,1.16504608,119.76,119.66,68.00029577]
[1644253871165,6.21943237,119.76,119.66,68.00029577]
[1644253872265,6.46943237,119.76,119.66,68.00029577]
[1644253872663,35.12583728,119.75,119.66,68.00029577]
[1644253872963,35.37583728,119.75,119.66,55.46309577]
[1644253873164,2.14682857,119.74,119.64,12.05]
[1644253873364,2.39682857,119.74,119.64,12.05]
[1644253873564,3.56187465,119.74,119.64,12.05]
[1644253874065,34.60982502,119.73,119.65,42.56916069]
[1644253874263,3.31187465,119.74,119.65,42.56916069]
[1644253874464,3.35085702,119.74,119.65,42.56916069]
[1644253874666,3.31187465,119.74,119.65,42.56916069]
[1644253875064,1.16504608,119.73,119.65,42.56916069]
[1644253875264,46.91561802,119.73,119.65,42.56916069]
[1644253875965,45.75057194,119.73,119.65,42.56916069]
[1644253876367,2.14682857,119.73,119.65,42.56916069]
[1644253876569,1.16504608,119.74,119.65,42.56916069]
[1644253876768,1.20402845,119.75,119.65,54.61916069]
[1644253877267,1.16504608,119.74,119.65,54.61916069]
[1644253877470,44.52411648,119.74,119.65,54.61916069]
[1644253877767,46.92094505,119.74,119.65,12.05]
[1644253877968,48.08599113,119.74,119.63,12.05]
[1644253878167,1.16504608,119.73,119.63,12.05]
[1644253878369,1.41504608,119.73,119.63,12.05]
[1644253878567,3.56187465,119.73,119.63,12.05]
[1644253878968,31.6871255,119.72,119.64,46.14509277]
[1644253879268,31.9371255,119.72,119.64,46.14509277]
[1644253881468,0.25,119.72,119.64,46.14509277]
[1644253881870,1.41504608,119.74,119.64,46.14509277]
[1644253882170,1.16504608,119.74,119.64,46.14509277]
[1644253882371,48.68582348,119.73,119.64,46.14509277]
[1644253882571,49.85086956,119.73,119.64,46.14509277]
[1644253882771,1.16504608,119.73,119.64,46.14509277]
[1644253882972,1.16504608,119.74,119.65,12.05]
[1644253883174,25.41682845,119.75,119.65,12.05]
[1644253883571,1.20402845,119.75,119.65,12.05]
[1644253883871,0.03898237,119.75,119.66,44.43717884]
[1644253884072,0.25,119.75,119.66,44.43717884]
[1644253884272,1.45402845,119.76,119.66,44.43717884]
[1644253884472,1.20402845,119.76,119.66,44.43717884]
[1644253884672,1.45402845,119.76,119.66,44.43717884]
[1644253885073,1.20402845,119.76,119.66,56.97447884]
[1644253885275,6.21943237,119.76,119.67,12.05]
[1644253885676,6.18045,119.75,119.67,12.3]
[1644253886075,6.18045,119.75,119.68,37.21950244]
[1644253886274,6.18045,119.75,119.7,44.16266751]
[1644253886476,6.18045,119.75,119.72,46.67194923]
[1644253888774,6.43045,119.75,119.72,46.67194923]
[1644253890276,6.18045,119.75,119.72,46.67194923]
[1644253890578,6.18045,119.75,119.71,12.05]
[1644253890977,1.20402845,119.78,119.71,12.05]
[1644253891177,1.16504608,119.78,119.71,12.05]
[1644253891577,1.16504608,119.78,119.72,43.78004645]
[1644253891778,7.34549608,119.78,119.72,43.78004645]
[1644253891978,0.25,119.78,119.72,43.78004645]
[1644253893284,1.41504608,119.79,119.72,43.78004645]
[1644253893683,3.56187465,119.79,119.72,43.78004645]
[1644253897389,37.80534391,119.79,119.72,43.78004645]
[1644253897988,3.56187465,119.79,119.72,43.78004645]
[1644253899906,3.31187465,119.79,119.72,43.78004645]
[1644253900204,60.03658237,119.81,119.72,55.83004645]
[1644253900205,1.16504608,119.8,119.72,55.83004645]
[1644253900605,48.76624608,119.81,119.72,55.83004645]
[1644253900804,1.20402845,119.82,119.72,55.83004645]
[1644253901009,1.20402845,119.83,119.72,68.61114645]
[1644253902006,1.45402845,119.83,119.72,68.61114645]
[1644253902206,34.21658338,119.83,119.72,68.36114645]
[1644253902706,43.44868705,119.81,119.69,24.0793]
[1644253902908,0.03898237,119.8,119.69,36.1293]
[1644253903109,3.35085702,119.8,119.69,36.1293]
[1644253903307,1.16504608,119.79,119.69,36.1293]
[1644253903509,3.31187465,119.79,119.69,36.1293]
[1644253903706,2.14682857,119.78,119.69,36.1293]
[1644253903906,34.9093835,119.78,119.7,48.210807]
[1644253904107,35.1593835,119.78,119.7,48.210807]
[1644253904308,2.14682857,119.77,119.7,48.210807]
[1644253904809,0.25,119.77,119.7,60.260807]
[1644253905009,0.25,119.77,119.7,72.793607]
[1644253905610,0.03898237,119.8,119.7,72.793607]
[1644253905808,38.88657547,119.81,119.7,72.793607]
[1644253907211,38.52869496,119.79,119.7,72.793607]
[1644253907611,38.77869496,119.79,119.7,72.793607]
[1644253909611,0.25,119.79,119.7,72.793607]
[1644253909812,1.45402845,119.8,119.7,72.793607]
[1644253910011,1.20402845,119.8,119.7,72.793607]
[1644253910212,1.45402845,119.8,119.7,72.793607]
[1644253911222,1.45402845,119.8,119.7,73.043607]
[1644253911416,1.45402845,119.8,119.7,74.80219049]
[1644253911616,0.28898237,119.8,119.7,74.80219049]
[1644253911817,0.03898237,119.8,119.7,74.80219049]
[1644253912017,1.45402845,119.81,119.7,74.80219049]
[1644253912217,0.03898237,119.8,119.7,74.80219049]
[1644253912617,1.16504608,119.8,119.7,74.80219049]
[1644253912818,0.25,119.8,119.7,74.80219049]
[1644253913017,0.28898237,119.8,119.7,74.80219049]
[1644253913518,1.45402845,119.8,119.7,74.80219049]
[1644253913918,0.28898237,119.8,119.7,74.80219049]
[1644253914320,0.03898237,119.8,119.7,74.80219049]
[1644253914519,1.16504608,119.8,119.7,74.80219049]
[1644253914718,1.45402845,119.8,119.7,74.80219049]
[1644253916222,1.45402845,119.8,119.7,74.55219049]
[1644253916420,2.32580556,119.84,119.71,124.0]
[1644253916620,6.18045,119.84,119.75,12.5254]
[1644253916820,6.18045,119.84,119.76,12.05]
[1644253917520,6.18045,119.84,119.77,41.52553351]
[1644253917721,6.18045,119.84,119.79,45.45721529]
[1644253920927,45.53330991,119.84,119.79,45.45721529]
[1644253921330,6.18045,119.84,119.79,45.45721529]
[1644253922029,69.03630556,119.88,119.79,45.45721529]
[1644253922233,6.18045,119.87,119.79,45.45721529]
[1644253922429,6.18045,119.87,119.8,1.75962849]
[1644253922630,49.30340556,119.9,119.8,13.80962849]
[1644253922830,2.32580556,119.9,119.81,12.5211]
[1644253923029,115.42580556,119.91,119.82,12.05]
[1644253923229,113.1,119.91,119.82,13.82063231]
[1644253923429,113.1,119.91,119.83,35.14877677]
[1644253923630,2.32580556,119.92,119.84,12.05]
[1644253923835,30.89498709,119.91,119.85,48.52556429]
[1644253924130,2.14682857,119.92,119.85,48.52556429]
[1644253924331,2.14682857,119.92,119.85,60.57556429]
[1644253924930,2.32580556,119.95,119.85,60.57556429]
[1644253925131,45.05915958,119.94,119.85,60.57556429]
[1644253925731,47.20598815,119.94,119.85,60.57556429]
[1644253925932,12.5194,119.93,119.85,60.57556429]
[1644253926132,32.35611085,119.92,119.85,60.57556429]
[1644253926932,47.02383942,119.92,119.85,12.05]
[1644253927135,47.02383942,119.92,119.82,12.05]
[1644253927933,47.02383942,119.92,119.83,35.87351093]
[1644253930435,47.02383942,119.92,119.82,12.05]
[1644253930635,47.02383942,119.92,119.81,12.05]
[1644253930834,94.49283942,119.92,119.81,12.05]
[1644253931337,94.49283942,119.92,119.76,24.9677]
[1644253931540,163.38638306,119.92,119.77,35.46077192]
[1644253931740,0.31516026,119.88,119.74,12.05]
[1644253931938,0.31516026,119.88,119.73,12.05]
[1644253931939,12.5317,119.84,119.73,12.05]
[1644253932338,2.14682857,119.83,119.73,12.05]
[1644253932636,45.05915958,119.82,119.74,42.18267813]
[1644253933438,2.18573209,119.83,119.74,42.18267813]
[1644253933738,2.14682857,119.83,119.74,42.18267813]
[1644253933941,12.531,119.82,119.74,42.18267813]
[1644253934440,54.04107573,119.82,119.74,42.18267813]
[1644253937539,56.1879043,119.82,119.72,12.05]
[1644253937741,56.1879043,119.82,119.5,9.41429829]
[1644253937742,56.1879043,119.82,119.65,150.66]
[1644253937942,0.03890352,119.81,119.67,18.19455]
[1644253938140,12.5369,119.77,119.67,18.19455]
[1644253938541,12.5369,119.77,119.68,41.56390577]
[1644253938743,41.51007573,119.76,119.69,18.19353]
[1644253938943,41.51007573,119.76,119.7,42.60048446]
[1644253939142,41.51007573,119.76,119.71,6.1425]
[1644253939347,12.5369,119.77,119.71,6.1425]
[1644253940469,12.5347,119.79,119.72,48.74038936]
[1644253940746,12.5347,119.79,119.74,47.60015645]
[1644253940947,12.5347,119.79,119.75,6.14045]
[1644253941146,12.5347,119.79,119.76,40.64089618]
[1644253941347,6.06439994,119.78,119.76,46.78082618]
[1644253942350,3.03219997,119.78,119.76,46.78082618]
[1644253942751,12.5326,119.8,119.76,46.78082618]
[1644253943849,12.5326,119.8,119.76,40.64089618]
[1644253945052,12.5326,119.8,119.72,12.05]
[1644253945252,14.67942857,119.8,119.7,12.05]
[1644253945451,14.96833209,119.8,119.7,12.05]
[1644253946051,33.22140663,119.79,119.71,42.45729161]
[1644253946252,12.5345,119.78,119.71,54.50729161]
[1644253949355,40.96241127,119.77,119.71,54.50729161]
[1644253949555,53.49781127,119.77,119.71,54.50729161]
[1644253949757,53.49781127,119.77,119.71,42.45729161]
[1644253950956,53.49781127,119.77,119.69,12.05]
[1644253951957,53.49781127,119.77,119.7,45.62135367]
[1644253952960,12.5375,119.75,119.7,45.62135367]
[1644253953161,48.99035916,119.75,119.69,12.05]
[1644253953559,12.5375,119.75,119.69,12.05]
[1644253954363,12.5362,119.77,119.69,12.05]
[1644253954563,82.48007367,119.78,119.7,35.27619794]
[1644253954762,45.9717,119.78,119.7,35.27619794]
[1644253954963,0.03890352,119.8,119.71,12.05]
[1644253955164,41.82030352,119.81,119.71,12.05]
[1644253955366,43.96713209,119.81,119.71,12.05]
[1644253955782,36.49707077,119.8,119.72,47.16466471]
[1644253955984,12.5341,119.79,119.72,59.21466471]
[1644253956282,0.03890352,119.82,119.72,59.21466471]
[1644253956482,2.18573209,119.83,119.72,59.21466471]
[1644253956684,0.03890352,119.83,119.73,1.77063231]
[1644253956882,0.03890352,119.84,119.74,12.05]
[1644253957282,0.03890352,119.84,119.75,48.20846506]
[1644253957483,47.53940521,119.85,119.76,12.05]
[1644253957689,47.53940521,119.85,119.77,36.41835731]
[1644253957886,2.14682857,119.84,119.77,36.41835731]
[1644253958087,8.513,119.85,119.77,36.41835731]
[1644253958284,12.5282,119.84,119.77,36.41835731]
[1644253958485,8.513,119.85,119.77,48.46835731]
[1644253959986,8.513,119.85,119.77,60.99385731]
[1644253961788,43.93749689,119.88,119.77,60.99385731]
[1644253961988,12.5256,119.86,119.77,60.99385731]
[1644253962190,46.04227706,119.86,119.77,60.99385731]
[1644253962588,12.5256,119.86,119.77,60.99385731]
[1644253965092,34.06290213,119.85,119.77,60.99385731]
[1644253965292,46.58950213,119.85,119.77,48.46835731]
[1644253965595,46.58950213,119.85,119.77,36.41835731]
[1644253967493,2.14682857,119.84,119.75,12.05]
[1644253967694,2.14682857,119.84,119.73,12.05]
[1644253967895,12.5331,119.81,119.72,12.05]
[1644253968595,0.03890352,119.83,119.73,37.47397456]
[1644253968797,0.03890352,119.84,119.74,12.05]
[1644253968997,0.03890352,119.83,119.74,13.82063231]
[1644253969196,0.03890352,119.84,119.74,13.82063231]
[1644253969601,38.60869597,119.87,119.75,43.2091069]
[1644253969796,0.03890352,119.84,119.76,12.05]
[1644253969998,12.56400352,119.86,119.77,57.60808297]
[1644253970197,12.5251,119.86,119.78,12.05]
[1644253970403,12.5251,119.86,119.79,46.24852877]
[1644253970600,12.5251,119.86,119.79,58.29852877]
[1644253972103,38.84547798,119.85,119.79,58.29852877]
[1644253972303,51.37237798,119.85,119.77,12.05]
[1644253972803,14.67372857,119.85,119.75,12.05]
[1644253973002,0.03890352,119.84,119.75,12.05]
[1644253973205,2.18573209,119.85,119.75,12.05]
[1644253973803,2.18573209,119.85,119.76,34.64176217]
[1644253974003,12.5294,119.82,119.76,34.64176217]
[1644253976212,12.7794,119.82,119.76,34.64176217]
[1644253976812,52.74914627,119.82,119.76,34.64176217]
[1644253977012,12.7794,119.82,119.76,34.64176217]
[1644253982540,12.5294,119.82,119.76,34.64176217]
[1644253982738,0.03890352,119.84,119.77,12.05]
[1644253982938,0.03890352,119.86,119.77,12.05]
[1644253983138,0.03890352,119.87,119.77,12.05]
[1644253983741,0.03890352,119.87,119.78,40.87833406]
[1644253983945,12.5256,119.86,119.78,52.92833406]
[1644253984140,49.29717493,119.86,119.78,52.92833406]
[1644253984342,12.5256,119.86,119.78,52.92833406]